[Event "Prague Festival Futures 2024"]
[Site "Prague"]
[Date "2024.03.06"]
[Round "8.2"]
[White "Siskou, Evangelia"]
[Black "Brzezina, Pawel"]
[Result "0-1"]
[ECO "B51"]
[WhiteElo "1680"]
[BlackElo "1834"]
[Annotator "NA RC"]
[PlyCount "110"]
[EventDate "2024.02.22"]
[EventType "tourn"]
[EventCountry "CZE"]
[SourceTitle "playchess.com"]
[Source "ChessBase"]
[SourceQuality "1"]
[TimeControl "40/5400+30:1800+30"]

1. e4 {[%emt 0:00:39]} c5 {[%emt 0:00:36]} 2. Nf3 {[%emt 0:00:26]} d6 {[%emt 0:00:37]} 3. Bb5+ {[%emt 0:00:27]} Nd7 {[%emt 0:01:10]} 4. c3 {[%emt 0:00:51]} Ngf6 {[%emt 0:00:51]} 5. Bd3 {[%emt 0:00:34]} a6 {[%emt 0:01:21]} 6. Bc2 {[%emt 0:01:45]} b5 {[%emt 0:01:11]} 7. O-O {[%emt 0:01:23]} Bb7 {[%emt 0:01:53]} 8. Re1 {[%emt 0:02:10]} e6 {[%emt 0:00:50]} 9. d4 {[%emt 0:01:37]} Qc7 {[%emt 0:01:58]} 10. h3 {[%emt 0:08:17]} Be7 {[%emt 0:02:59]} 11. Bf4 {[%emt 0:01:15]} e5 {[%emt 0:04:20]} 12. Bh2 {[%emt 0:06:33]} O-O {[%emt 0:07:35]} 13. Nbd2 {[%emt 0:01:55]} Rfc8 {[%emt 0:01:38]} 14. Rc1 {[%emt 0:02:34]} Bf8 {[%emt 0:03:13]} 15. a4 {[%emt 0:06:07]} g6 {[%emt 0:06:31]} 16. Qe2 {[%emt 0:05:44]} c4 {[%emt 0:05:18]} 17. b3 {[%emt 0:10:39]} Bh6 {[%emt 0:03:43]} 18. bxc4 {[%emt 0:05:02]} bxc4 {[%emt 0:00:09]} 19. Rb1 {[%emt 0:01:54]} a5 {[%emt 0:10:59]} 20. dxe5 {[%emt 0:04:32]} dxe5 {[%emt 0:00:11]} 21. Nxe5 {[%emt 0:13:38]} Nxe5 {[%emt 0:00:14]} 22. Bxe5 {[%emt 0:00:32]} Qxe5 {[%emt 0:00:22]} 23. Rxb7 {[%emt 0:00:04]} Qxc3 {[%emt 0:01:39]} 24. Nf3 {[%emt 0:01:45]} Re8 {[%emt 0:07:13]} 25. Rd1 {[%emt 0:06:11]} Bf4 {[%emt 0:03:18]} 26. g3 {[%emt 0:01:51]} Be5 {[%emt 0:00:13]} 27. Nxe5 {[%emt 0:00:21]} Rxe5 {[%emt 0:00:51]} 28. Rc7 {[%emt 0:01:07]} Rae8 {[%emt 0:01:16]} 29. Rxc4 {[%emt 0:01:09]} Qa3 {[%emt 0:00:50]} 30. Rd3 {[%emt 0:05:10]} Qa1+ {[%emt 0:01:37]} 31. Kg2 {[%emt 0:02:12]} Nxe4 {[%emt 0:02:23]} 32. Rd1 {[%emt 0:03:14]} Qa2 {[%emt 0:00:28]} 33. Bd3 {[%emt 0:03:27]} Qxe2 {[%emt 0:00:32]} 34. Bxe2 {[%emt 0:00:01]} Nxf2 {[%emt 0:01:26]} 35. Kxf2 {[%emt 0:01:10]} Rxe2+ {[%emt 0:00:02]} 36. Kf3 {[%emt 0:01:15]} R8e3+ {[%emt 0:01:02]} 37. Kf4 {[%emt 0:00:09]} Rb3 {[%emt 0:10:22]} 38. Rg1 {[%emt 0:01:13]} Ra3 {[%emt 0:00:28]} 39. Rgc1 {[%emt 0:00:31]} Rea2 {[%emt 0:00:41]} 40. h4 {[%emt 0:00:33]} Rxa4 {[%emt 0:01:54]} 41. Ke5 {[%emt 0:03:48]} Rxc4 {[%emt 0:02:57]} 42. Rxc4 {[%emt 0:00:02]} Kg7 {[%emt 0:00:12]} 43. g4 {[%emt 0:03:13]} Ra1 {[%emt 0:03:47]} 44. Kf4 {[%emt 0:02:27]} a4 {[%emt 0:03:10]} 45. Kg3 {[%emt 0:00:57]} a3 {[%emt 0:00:33]} 46. Kg2 {[%emt 0:03:42]} a2 {[%emt 0:00:15]} 47. Ra4 {[%emt 0:00:10]} f5 {[%emt 0:01:50]} 48. Ra7+ {[%emt 0:02:11]} Kf6 {[%emt 0:05:08]} 49. Ra6+ {[%emt 0:00:49]} Ke5 {[%emt 0:01:25]} 50. Ra5+ {[%emt 0:00:36]} Kd6 {[%emt 0:02:10]} 51. Ra6+ {[%emt 0:01:34]} Kc5 {[%emt 0:00:47]} 52. Ra5+ {[%emt 0:00:53]} Kb6 {[%emt 0:00:15]} 53. Ra4 {[%emt 0:01:33]} f4 {[%emt 0:00:15]} 54. Ra3 {[%emt 0:00:52]} f3+ {[%emt 0:00:13]} 55. Rxf3 {[%emt 0:00:59]} Rb1 {[%emt 0:00:24]} 0-1

[Event "Prague Festival Futures 2024"]
[Site "Prague"]
[Date "2024.03.06"]
[Round "8.3"]
[White "Markina, Sofiia"]
[Black "Aansh Nandan Nerurkar"]
[Result "0-1"]
[ECO "B73"]
[WhiteElo "1680"]
[BlackElo "1891"]
[Annotator "NA RC"]
[PlyCount "90"]
[EventDate "2024.02.22"]
[EventType "tourn"]
[EventCountry "CZE"]
[SourceTitle "playchess.com"]
[Source "ChessBase"]
[SourceQuality "1"]
[TimeControl "40/5400+30:1800+30"]

1. e4 {[%emt 0:00:03]} c5 {[%emt 0:00:05]} 2. Nf3 {[%emt 0:00:05]} d6 {[%emt 0:00:05]} 3. d4 {[%emt 0:00:15]} cxd4 {[%emt 0:00:07]} 4. Nxd4 {[%emt 0:00:04]} Nf6 {[%emt 0:00:07]} 5. Nc3 {[%emt 0:00:14]} g6 {[%emt 0:00:07]} 6. Be3 {[%emt 0:00:25]} Bg7 {[%emt 0:00:08]} 7. Be2 {[%emt 0:00:17]} O-O {[%emt 0:00:07]} 8. O-O {[%emt 0:00:14]} Nc6 {[%emt 0:00:15]} 9. Qd2 {[%emt 0:00:25]} Ng4 {[%emt 0:00:07]} 10. Bxg4 {[%emt 0:00:27]} Bxg4 {[%emt 0:00:08]} 11. f3 {[%emt 0:00:21]} Bd7 {[%emt 0:00:18]} 12. Nd5 {[%emt 0:02:14]} Rc8 {[%emt 0:00:17]} 13. c3 {[%emt 0:02:26]} Re8 {[%emt 0:06:33]} 14. Rfd1 {[%emt 0:04:57]} e6 {[%emt 0:04:33]} 15. Nxc6 {[%emt 0:00:11]} bxc6 {[%emt 0:00:05]} 16. Nb4 {[%emt 0:06:04]} Bf8 {[%emt 0:01:22]} 17. Kh1 {[%emt 0:15:46]} Qc7 {[%emt 0:06:54]} 18. Bh6 {[%emt 0:01:12]} Bxh6 {[%emt 0:02:08]} 19. Qxh6 {[%emt 0:00:06]} d5 {[%emt 0:03:31]} 20. Rd3 {[%emt 0:14:44]} c5 {[%emt 0:03:16]} 21. Nc2 {[%emt 0:07:35]} Bb5 {[%emt 0:00:28]} 22. Rdd1 {[%emt 0:01:24]} dxe4 {[%emt 0:00:39]} 23. fxe4 {[%emt 0:00:26]} Qe5 {[%emt 0:00:14]} 24. Qh4 {[%emt 0:02:06]} Bc6 {[%emt 0:00:11]} 25. Re1 {[%emt 0:06:29]} Red8 {[%emt 0:00:41]} 26. Re2 {[%emt 0:03:16]} f5 {[%emt 0:02:06]} 27. Ne1 {[%emt 0:04:30]} Bxe4 {[%emt 0:06:33]} 28. Nf3 {[%emt 0:00:24]} Qg7 {[%emt 0:00:27]} 29. Ng5 {[%emt 0:00:50]} Qe7 {[%emt 0:00:17]} 30. Qg3 {[%emt 0:03:51]} Bd5 {[%emt 0:09:21]} 31. b3 {[%emt 0:03:35]} c4 {[%emt 0:01:12]} 32. b4 {[%emt 0:00:10]} Qf6 {[%emt 0:03:48]} 33. Rf1 {[%emt 0:04:23]} Rf8 {[%emt 0:05:01]} 34. h4 {[%emt 0:00:35]} Rce8 {[%emt 0:01:11]} 35. Qc7 {[%emt 0:03:00]} Re7 {[%emt 0:00:45]} 36. Qc5 {[%emt 0:01:31]} h6 {[%emt 0:01:10]} 37. Nf3 {[%emt 0:00:09]} g5 {[%emt 0:02:59]} 38. h5 {[%emt 0:03:36]} g4 {[%emt 0:00:15]} 39. Nh2 {[%emt 0:03:05]} Rg7 {[%emt 0:00:45]} 40. Qd6 {[%emt 0:01:55]} f4 {[%emt 0:01:36]} 41. Ref2 {[%emt 0:36:36]} f3 {[%emt 0:30:21]} 42. gxf3 {[%emt 0:00:00]} g3 {[%emt 0:00:00]} 43. Rg2 {[%emt 0:00:00]} gxh2 {[%emt 0:00:00]} 44. Rxg7+ {[%emt 0:00:00]} Kxg7 {[%emt 0:00:00]} 45. Qg3+ {[%emt 0:00:00]} Kh8 {[%emt 0:00:00]} 0-1

[Event "Prague Festival Futures 2024"]
[Site "Prague"]
[Date "2024.03.06"]
[Round "8.4"]
[White "Jakubse, Tamae Severina"]
[Black "Guntaka, Aayansh R"]
[Result "1-0"]
[ECO "C01"]
[WhiteElo "1735"]
[BlackElo "1651"]
[Annotator "NA RC"]
[PlyCount "169"]
[EventDate "2024.02.22"]
[EventType "tourn"]
[EventCountry "CZE"]
[SourceTitle "playchess.com"]
[Source "ChessBase"]
[SourceQuality "1"]
[TimeControl "40/5400+30:1800+30"]

1. e4 {[%emt 0:00:03]} e6 {[%emt 0:00:12]} 2. d4 {[%emt 0:00:06]} d5 {[%emt 0:00:10]} 3. Nc3 {[%emt 0:00:06]} Bb4 {[%emt 0:00:12]} 4. exd5 {[%emt 0:00:24]} exd5 {[%emt 0:00:11]} 5. Qf3 {[%emt 0:00:06]} Ne7 {[%emt 0:01:59]} 6. Bd3 {[%emt 0:00:13]} Nbc6 {[%emt 0:01:36]} 7. Nge2 {[%emt 0:01:59]} O-O {[%emt 0:01:12]} 8. Be3 {[%emt 0:03:58]} a5 {[%emt 0:02:44]} 9. a3 {[%emt 0:03:42]} Bxc3+ {[%emt 0:00:21]} 10. Nxc3 {[%emt 0:00:12]} f5 {[%emt 0:04:57]} 11. g3 {[%emt 0:11:07]} b6 {[%emt 0:05:16]} 12. O-O-O {[%emt 0:05:28]} Ba6 {[%emt 0:02:41]} 13. Rhe1 {[%emt 0:08:00]} b5 {[%emt 0:01:45]} 14. Bxb5 {[%emt 0:09:57]} Bxb5 {[%emt 0:00:37]} 15. Nxb5 {[%emt 0:00:09]} Rb8 {[%emt 0:00:27]} 16. a4 {[%emt 0:02:07]} Qd7 {[%emt 0:09:53]} 17. Bf4 {[%emt 0:06:19]} Rb7 {[%emt 0:16:10]} 18. Qe2 {[%emt 0:09:47]} Kf7 {[%emt 0:03:12]} 19. f3 {[%emt 0:16:32]} Na7 {[%emt 0:07:11]} 20. Nxa7 {[%emt 0:06:04]} Rxa7 {[%emt 0:00:17]} 21. Rd3 {[%emt 0:03:07]} Nc6 {[%emt 0:06:48]} 22. g4 {[%emt 0:03:38]} Nb4 {[%emt 0:04:40]} 23. Rb3 {[%emt 0:02:35]} Raa8 {[%emt 0:10:11]} 24. Qb5 {[%emt 0:05:04]} c6 {[%emt 0:02:50]} 25. Qe2 {[%emt 0:00:08]} Rae8 {[%emt 0:03:51]} 26. Be5 {[%emt 0:00:04]} c5 {[%emt 0:05:12]} 27. dxc5 {[%emt 0:01:12]} fxg4 {[%emt 0:00:56]} 28. fxg4 {[%emt 0:01:02]} Kg8 {[%emt 0:01:28]} 29. Re3 {[%emt 0:00:51]} Qxa4 {[%emt 0:01:07]} 30. b3 {[%emt 0:00:55]} Qc6 {[%emt 0:05:14]} 31. Bd6 {[%emt 0:00:08]} Rxe3 {[%emt 0:00:49]} 32. Qxe3 {[%emt 0:00:09]} Ra8 {[%emt 0:00:34]} 33. Qe6+ {[%emt 0:00:39]} Kh8 {[%emt 0:00:07]} 34. Qf7 {[%emt 0:00:27]} Qc8 {[%emt 0:01:22]} 35. Re7 {[%emt 0:01:05]} Qg8 {[%emt 0:00:48]} 36. Qxg8+ {[%emt 0:00:26]} Rxg8 {[%emt 0:00:24]} 37. Ra7 {[%emt 0:00:31]} Nc6 {[%emt 0:00:10]} 38. Ra6 {[%emt 0:00:11]} Rc8 {[%emt 0:00:18]} 39. Kb2 {[%emt 0:00:25]} h6 {[%emt 0:00:09]} 40. c3 {[%emt 0:00:37]} Kh7 {[%emt 0:00:23]} 41. Ka3 {[%emt 0:01:23]} Kg6 {[%emt 0:00:18]} 42. Ka4 {[%emt 0:07:05]} Kg5 {[%emt 0:06:34]} 43. Kb5 {[%emt 0:04:12]} d4 {[%emt 0:00:40]} 44. cxd4 {[%emt 0:03:31]} Nxd4+ {[%emt 0:00:25]} 45. Kxa5 {[%emt 0:00:35]} Nxb3+ {[%emt 0:00:26]} 46. Kb6 {[%emt 0:00:49]} Nxc5 {[%emt 0:01:26]} 47. Bxc5 {[%emt 0:00:12]} Kxg4 {[%emt 0:00:22]} 48. Bd6 {[%emt 0:02:09]} Kh3 {[%emt 0:03:20]} 49. Ra7 {[%emt 0:02:24]} h5 {[%emt 0:00:21]} 50. Rxg7 {[%emt 0:02:03]} h4 {[%emt 0:00:13]} 51. Rc7 {[%emt 0:00:49]} Re8 {[%emt 0:02:44]} 52. Kc5 {[%emt 0:01:49]} Re2 {[%emt 0:02:51]} 53. Kd5 {[%emt 0:00:29]} Rd2+ {[%emt 0:01:06]} 54. Ke6 {[%emt 0:00:07]} Rd4 {[%emt 0:01:57]} 55. Be5 {[%emt 0:01:44]} Rd2 {[%emt 0:01:42]} 56. Kf5 {[%emt 0:01:02]} Rc2 {[%emt 0:00:19]} 57. Kg5 {[%emt 0:03:51]} Rg2+ {[%emt 0:01:43]} 58. Kh5 {[%emt 0:01:37]} Re2 {[%emt 0:00:53]} 59. Rc3+ {[%emt 0:01:11]} Kg2 {[%emt 0:00:08]} 60. Bf4 {[%emt 0:00:43]} Rf2 {[%emt 0:01:04]} 61. Bc7 {[%emt 0:00:56]} h3 {[%emt 0:00:29]} 62. Kg4 {[%emt 0:01:05]} Rb2 {[%emt 0:01:27]} 63. Rg3+ {[%emt 0:00:42]} Kh1 {[%emt 0:01:45]} 64. Rxh3 {[%emt 0:00:28]} Rg2+ {[%emt 0:00:12]} 65. Kf3 {[%emt 0:00:54]} Rg7 {[%emt 0:00:25]} 66. Bg3 {[%emt 0:00:56]} Ra7 {[%emt 0:00:54]} 67. Rh8 {[%emt 0:00:24]} Ra3+ {[%emt 0:00:13]} 68. Kg4 {[%emt 0:00:11]} Kg2 {[%emt 0:00:07]} 69. Rf8 {[%emt 0:00:20]} Rb3 {[%emt 0:00:39]} 70. Rf2+ {[%emt 0:00:20]} Kg1 {[%emt 0:00:15]} 71. h4 {[%emt 0:00:40]} Rb7 {[%emt 0:00:37]} 72. Kh3 {[%emt 0:00:57]} Rb1 {[%emt 0:00:26]} 73. Rg2+ {[%emt 0:00:26]} Kf1 {[%emt 0:00:21]} 74. Rf2+ {[%emt 0:00:44]} Kg1 {[%emt 0:00:14]} 75. h5 {[%emt 0:00:17]} Rb6 {[%emt 0:00:44]} 76. Re2 {[%emt 0:00:23]} Rb1 {[%emt 0:00:37]} 77. Re1+ {[%emt 0:00:06]} Rxe1 {[%emt 0:00:15]} 78. Bxe1 {[%emt 0:00:04]} Kf1 {[%emt 0:00:07]} 79. h6 {[%emt 0:00:05]} Kxe1 {[%emt 0:00:07]} 80. h7 {[%emt 0:00:03]} Ke2 {[%emt 0:00:12]} 81. h8=Q {[%emt 0:00:10]} Kf3 {[%emt 0:00:05]} 82. Qd4 {[%emt 0:00:38]} Ke2 {[%emt 0:00:02]} 83. Kg3 {[%emt 0:00:21]} Ke1 {[%emt 0:00:04]} 84. Kf3 {[%emt 0:00:09]} Kf1 {[%emt 0:00:04]} 85. Qf2# {[%emt 0:00:06]} 1-0

[Event "Prague Festival Futures 2024"]
[Site "Prague"]
[Date "2024.03.06"]
[Round "8.5"]
[White "Peglau, Paul David"]
[Black "Stara, Zuzana"]
[Result "1/2-1/2"]
[ECO "D38"]
[WhiteElo "1764"]
[BlackElo "1674"]
[Annotator "NA RC"]
[PlyCount "63"]
[EventDate "2024.02.22"]
[EventType "tourn"]
[EventCountry "CZE"]
[SourceTitle "playchess.com"]
[Source "ChessBase"]
[SourceQuality "1"]
[TimeControl "40/5400+30:1800+30"]

1. d4 {[%emt 0:00:02]} d5 {[%emt 0:00:03]} 2. c4 {[%emt 0:00:06]} e6 {[%emt 0:00:07]} 3. Nc3 {[%emt 0:00:08]} Nf6 {[%emt 0:00:08]} 4. Nf3 {[%emt 0:00:10]} Bb4 {[%emt 0:00:12]} 5. Bg5 {[%emt 0:00:23]} h6 {[%emt 0:00:09]} 6. Bxf6 {[%emt 0:00:41]} Qxf6 {[%emt 0:00:09]} 7. e3 {[%emt 0:00:08]} O-O {[%emt 0:00:46]} 8. Qb3 {[%emt 0:02:05]} Bxc3+ {[%emt 0:02:16]} 9. bxc3 {[%emt 0:06:16]} c6 {[%emt 0:02:04]} 10. cxd5 {[%emt 0:04:14]} exd5 {[%emt 0:00:47]} 11. c4 {[%emt 0:01:33]} dxc4 {[%emt 0:06:26]} 12. Bxc4 {[%emt 0:00:58]} Nd7 {[%emt 0:05:54]} 13. O-O {[%emt 0:04:00]} b6 {[%emt 0:01:15]} 14. Rfd1 {[%emt 0:14:55]} Bb7 {[%emt 0:01:23]} 15. a4 {[%emt 0:00:45]} Rad8 {[%emt 0:09:38]} 16. Be2 {[%emt 0:10:32]} Rfe8 {[%emt 0:05:31]} 17. a5 {[%emt 0:04:51]} b5 {[%emt 0:13:04]} 18. a6 {[%emt 0:03:28]} Bc8 {[%emt 0:01:25]} 19. Rdc1 {[%emt 0:07:43]} Nb8 {[%emt 0:06:46]} 20. Ne5 {[%emt 0:02:46]} Be6 {[%emt 0:08:37]} 21. Qc2 {[%emt 0:05:34]} Bd5 {[%emt 0:10:42]} 22. e4 {[%emt 0:07:58]} Be6 {[%emt 0:04:17]} 23. Nxc6 {[%emt 0:05:43]} Nxc6 {[%emt 0:05:42]} 24. Qxc6 {[%emt 0:00:18]} Qxd4 {[%emt 0:01:16]} 25. Bxb5 {[%emt 0:03:20]} Bd7 {[%emt 0:02:07]} 26. Qc5 {[%emt 0:00:57]} Bxb5 {[%emt 0:05:17]} 27. Qxb5 {[%emt 0:00:07]} Rxe4 {[%emt 0:00:47]} 28. g3 {[%emt 0:03:01]} Re5 {[%emt 0:02:04]} 29. Qb7 {[%emt 0:06:18]} Re2 {[%emt 0:01:48]} 30. Qf3 {[%emt 0:00:37]} Rde8 {[%emt 0:01:01]} 31. Kg2 {[%emt 0:02:25]} Qb2 {[%emt 0:00:47]} 32. Rab1 {[%emt 0:03:18]} 1/2-1/2

[Event "Prague Festival Futures 2024"]
[Site "Prague"]
[Date "2024.03.07"]
[Round "9.1"]
[White "Stara, Zuzana"]
[Black "Andre, Tomas"]
[Result "1/2-1/2"]
[ECO "B02"]
[WhiteElo "1674"]
[BlackElo "1829"]
[Annotator "NA RC"]
[PlyCount "60"]
[EventDate "2024.02.22"]
[EventType "tourn"]
[EventCountry "CZE"]
[SourceTitle "playchess.com"]
[Source "ChessBase"]
[SourceQuality "1"]
[TimeControl "40/5400+30:1800+30"]

1. e4 {[%emt 0:00:01]} Nf6 {[%emt 0:00:39]} 2. Nc3 {[%emt 0:01:13]} d5 {[%emt 0:00:28]} 3. exd5 {[%emt 0:00:48]} Nxd5 {[%emt 0:00:50]} 4. d4 {[%emt 0:00:38]} Nxc3 {[%emt 0:03:47]} 5. bxc3 {[%emt 0:00:02]} g6 {[%emt 0:01:13]} 6. Nf3 {[%emt 0:00:28]} Bg7 {[%emt 0:00:27]} 7. Bc4 {[%emt 0:01:15]} O-O {[%emt 0:05:54]} 8. O-O {[%emt 0:00:06]} c5 {[%emt 0:11:36]} 9. Be3 {[%emt 0:03:55]} Qa5 {[%emt 0:08:04]} 10. Qd2 {[%emt 0:04:07]} Nc6 {[%emt 0:15:35]} 11. Bh6 {[%emt 0:16:23]} Bg4 {[%emt 0:03:12]} 12. Bxg7 {[%emt 0:04:57]} Kxg7 {[%emt 0:00:03]} 13. Ne5 {[%emt 0:15:28]} Nxe5 {[%emt 0:01:28]} 14. dxe5 {[%emt 0:00:01]} Bf5 {[%emt 0:03:10]} 15. Rac1 {[%emt 0:16:45]} Rad8 {[%emt 0:06:22]} 16. Qe3 {[%emt 0:01:46]} a6 {[%emt 0:05:39]} 17. f4 {[%emt 0:14:18]} Qa4 {[%emt 0:05:06]} 18. Bd3 {[%emt 0:03:37]} Bxd3 {[%emt 0:02:02]} 19. cxd3 {[%emt 0:00:09]} e6 {[%emt 0:01:25]} 20. Rf3 {[%emt 0:03:41]} Qa3 {[%emt 0:01:02]} 21. Qd2 {[%emt 0:00:28]} Rd7 {[%emt 0:00:39]} 22. Rh3 {[%emt 0:01:11]} h5 {[%emt 0:00:22]} 23. f5 {[%emt 0:05:47]} exf5 {[%emt 0:02:31]} 24. Rxh5 {[%emt 0:02:06]} gxh5 {[%emt 0:00:17]} 25. Qg5+ {[%emt 0:00:11]} Kh8 {[%emt 0:00:12]} 26. Qxh5+ {[%emt 0:00:12]} Kg7 {[%emt 0:00:33]} 27. Qg5+ {[%emt 0:00:04]} Kh8 {[%emt 0:00:15]} 28. Qh5+ {[%emt 0:00:06]} Kg7 {[%emt 0:00:21]} 29. Qg5+ {[%emt 0:00:06]} Kh8 {[%emt 0:00:10]} 30. Qh5+ {[%emt 0:00:11]} Kg7 {[%emt 0:00:13]} 1/2-1/2

[Event "Prague Festival Futures 2024"]
[Site "Prague"]
[Date "2024.03.07"]
[Round "9.2"]
[White "Mrozowski, Nikodem"]
[Black "Jakubse, Tamae Severina"]
[Result "1-0"]
[ECO "D80"]
[WhiteElo "1527"]
[BlackElo "1735"]
[Annotator "NA RC"]
[PlyCount "53"]
[EventDate "2024.02.22"]
[EventType "tourn"]
[EventCountry "CZE"]
[SourceTitle "playchess.com"]
[Source "ChessBase"]
[SourceQuality "1"]
[TimeControl "40/5400+30:1800+30"]

1. d4 {[%emt 0:00:04]} Nf6 {[%emt 0:00:08]} 2. c4 {[%emt 0:00:04]} g6 {[%emt 0:00:06]} 3. Nc3 {[%emt 0:00:03]} d5 {[%emt 0:00:05]} 4. h4 {[%emt 0:00:05]} h5 {[%emt 0:01:39]} 5. Bg5 {[%emt 0:00:12]} Bg7 {[%emt 0:01:40]} 6. Bxf6 {[%emt 0:00:34]} Bxf6 {[%emt 0:00:10]} 7. Nxd5 {[%emt 0:00:26]} Bg7 {[%emt 0:00:13]} 8. e3 {[%emt 0:00:43]} c6 {[%emt 0:03:21]} 9. Nc3 {[%emt 0:00:16]} c5 {[%emt 0:02:04]} 10. d5 {[%emt 0:01:56]} O-O {[%emt 0:03:35]} 11. Rc1 {[%emt 0:01:47]} Qa5 {[%emt 0:04:25]} 12. a3 {[%emt 0:02:10]} e6 {[%emt 0:08:17]} 13. Qd2 {[%emt 0:05:06]} Na6 {[%emt 0:08:54]} 14. Be2 {[%emt 0:04:32]} exd5 {[%emt 0:14:16]} 15. cxd5 {[%emt 0:00:17]} b6 {[%emt 0:01:40]} 16. Nf3 {[%emt 0:01:22]} Bb7 {[%emt 0:03:30]} 17. O-O {[%emt 0:03:03]} Rad8 {[%emt 0:07:15]} 18. e4 {[%emt 0:03:25]} Rfe8 {[%emt 0:09:05]} 19. Qf4 {[%emt 0:04:34]} Nb8 {[%emt 0:07:10]} 20. Ng5 {[%emt 0:02:07]} Rf8 {[%emt 0:00:28]} 21. Bxh5 {[%emt 0:04:43]} Ba6 {[%emt 0:04:51]} 22. Rfe1 {[%emt 0:02:47]} Nd7 {[%emt 0:02:18]} 23. Be2 {[%emt 0:01:38]} c4 {[%emt 0:00:52]} 24. h5 {[%emt 0:02:07]} Ne5 {[%emt 0:02:19]} 25. h6 {[%emt 0:00:17]} Nd3 {[%emt 0:02:58]} 26. Bxd3 {[%emt 0:00:02]} Bxh6 {[%emt 0:00:02]} 27. Be2 {[%emt 0:00:13]} 1-0

[Event "Prague Festival Futures 2024"]
[Site "Prague"]
[Date "2024.03.07"]
[Round "9.3"]
[White "Aansh Nandan Nerurkar"]
[Black "Siskou, Evangelia"]
[Result "1-0"]
[ECO "B52"]
[WhiteElo "1891"]
[BlackElo "1680"]
[Annotator "NA RC"]
[PlyCount "101"]
[EventDate "2024.02.22"]
[EventType "tourn"]
[EventCountry "CZE"]
[SourceTitle "playchess.com"]
[Source "ChessBase"]
[SourceQuality "1"]
[TimeControl "40/5400+30:1800+30"]

1. e4 {[%emt 0:00:02]} c5 {[%emt 0:00:29]} 2. Nf3 {[%emt 0:00:05]} d6 {[%emt 0:00:18]} 3. Bb5+ {[%emt 0:00:06]} Bd7 {[%emt 0:00:27]} 4. Bxd7+ {[%emt 0:00:06]} Qxd7 {[%emt 0:00:21]} 5. c4 {[%emt 0:00:05]} Nf6 {[%emt 0:00:25]} 6. Nc3 {[%emt 0:00:08]} g6 {[%emt 0:01:16]} 7. d4 {[%emt 0:00:08]} cxd4 {[%emt 0:00:14]} 8. Nxd4 {[%emt 0:00:05]} Bg7 {[%emt 0:00:25]} 9. f3 {[%emt 0:00:06]} Nc6 {[%emt 0:00:54]} 10. Be3 {[%emt 0:00:07]} O-O {[%emt 0:00:13]} 11. O-O {[%emt 0:00:10]} e6 {[%emt 0:03:03]} 12. Qd2 {[%emt 0:00:56]} d5 {[%emt 0:05:10]} 13. cxd5 {[%emt 0:00:42]} exd5 {[%emt 0:00:44]} 14. Nxc6 {[%emt 0:00:06]} bxc6 {[%emt 0:00:29]} 15. e5 {[%emt 0:00:05]} Ne8 {[%emt 0:05:28]} 16. Bc5 {[%emt 0:00:05]} Bxe5 {[%emt 0:00:16]} 17. Bxf8 {[%emt 0:00:12]} Kxf8 {[%emt 0:00:30]} 18. Rac1 {[%emt 0:01:39]} Nd6 {[%emt 0:02:34]} 19. Na4 {[%emt 0:02:48]} Rc8 {[%emt 0:04:49]} 20. Rfe1 {[%emt 0:02:20]} Qf5 {[%emt 0:01:41]} 21. Nc5 {[%emt 0:07:04]} Kg8 {[%emt 0:03:07]} 22. Qf2 {[%emt 0:05:51]} Nb5 {[%emt 0:11:17]} 23. Nb3 {[%emt 0:07:59]} Qf6 {[%emt 0:02:28]} 24. Re2 {[%emt 0:01:15]} Bc7 {[%emt 0:09:01]} 25. Kh1 {[%emt 0:05:11]} Bb6 {[%emt 0:03:02]} 26. Qe1 {[%emt 0:01:02]} Kg7 {[%emt 0:08:01]} 27. Rec2 {[%emt 0:07:38]} Nd4 {[%emt 0:03:27]} 28. Nxd4 {[%emt 0:00:59]} Bxd4 {[%emt 0:00:02]} 29. b4 {[%emt 0:01:18]} Rc7 {[%emt 0:03:39]} 30. Re2 {[%emt 0:05:57]} Rb7 {[%emt 0:03:02]} 31. Re8 {[%emt 0:01:38]} Bb2 {[%emt 0:00:49]} 32. Rc2 {[%emt 0:05:33]} Ba3 {[%emt 0:01:30]} 33. Qc3 {[%emt 0:03:09]} Qxc3 {[%emt 0:02:20]} 34. Rxc3 {[%emt 0:00:04]} Rxb4 {[%emt 0:01:07]} 35. Re1 {[%emt 0:02:01]} Bb2 {[%emt 0:00:24]} 36. Rxc6 {[%emt 0:00:27]} Ra4 {[%emt 0:01:49]} 37. Rc2 {[%emt 0:00:08]} Bf6 {[%emt 0:02:36]} 38. Rd1 {[%emt 0:00:20]} d4 {[%emt 0:00:01]} 39. Rd3 {[%emt 0:00:12]} Rb4 {[%emt 0:07:26]} 40. g3 {[%emt 0:00:12]} a5 {[%emt 0:01:04]} 41. Kg2 {[%emt 0:30:28]} Bd8 {[%emt 0:38:18]} 42. Rb3 {[%emt 0:01:19]} Ra4 {[%emt 0:03:52]} 43. Kf2 {[%emt 0:00:12]} Be7 {[%emt 0:01:40]} 44. Ke2 {[%emt 0:00:51]} Bb4 {[%emt 0:00:00]} 45. Kd3 {[%emt 0:00:00]} Bc3 {[%emt 0:00:00]} 46. Re2 {[%emt 0:00:00]} h5 {[%emt 0:00:00]} 47. a3 {[%emt 0:00:00]} Kf6 {[%emt 0:00:00]} 48. Re8 {[%emt 0:00:00]} Kf5 {[%emt 0:00:00]} 49. h4 {[%emt 0:00:00]} Ba1 {[%emt 0:00:00]} 50. Ra8 {[%emt 0:00:00]} Bc3 {[%emt 0:00:00]} 51. Ra6 {[%emt 0:00:00]} 1-0

[Event "Prague Festival Futures 2024"]
[Site "Prague"]
[Date "2024.03.07"]
[Round "9.4"]
[White "Brzezina, Pawel"]
[Black "Peglau, Paul David"]
[Result "1/2-1/2"]
[ECO "B13"]
[WhiteElo "1834"]
[BlackElo "1764"]
[Annotator "NA RC"]
[PlyCount "60"]
[EventDate "2024.02.22"]
[EventType "tourn"]
[EventCountry "CZE"]
[SourceTitle "playchess.com"]
[Source "ChessBase"]
[SourceQuality "1"]
[TimeControl "40/5400+30:1800+30"]

1. e4 {[%emt 0:00:34]} c6 {[%emt 0:00:33]} 2. d4 {[%emt 0:00:39]} d5 {[%emt 0:00:05]} 3. exd5 {[%emt 0:01:08]} cxd5 {[%emt 0:00:09]} 4. Bd3 {[%emt 0:00:17]} Nc6 {[%emt 0:00:07]} 5. c3 {[%emt 0:00:27]} Nf6 {[%emt 0:00:10]} 6. h3 {[%emt 0:01:04]} g6 {[%emt 0:00:48]} 7. Nf3 {[%emt 0:01:07]} Bf5 {[%emt 0:00:34]} 8. O-O {[%emt 0:01:53]} Bxd3 {[%emt 0:01:00]} 9. Qxd3 {[%emt 0:00:19]} Bg7 {[%emt 0:00:10]} 10. Bf4 {[%emt 0:00:57]} O-O {[%emt 0:00:29]} 11. Nbd2 {[%emt 0:01:24]} e6 {[%emt 0:04:38]} 12. Rfe1 {[%emt 0:04:36]} Qe7 {[%emt 0:03:19]} 13. Bh2 {[%emt 0:09:39]} Rfc8 {[%emt 0:05:31]} 14. a4 {[%emt 0:03:21]} Na5 {[%emt 0:11:08]} 15. Ne5 {[%emt 0:02:45]} Nd7 {[%emt 0:04:22]} 16. f4 {[%emt 0:12:06]} Nxe5 {[%emt 0:07:17]} 17. fxe5 {[%emt 0:00:41]} Bh6 {[%emt 0:04:02]} 18. Rf1 {[%emt 0:01:58]} Bxd2 {[%emt 0:09:53]} 19. Qxd2 {[%emt 0:00:08]} Nb3 {[%emt 0:00:35]} 20. Qf2 {[%emt 0:00:14]} Nxa1 {[%emt 0:00:11]} 21. Rxa1 {[%emt 0:00:05]} Rab8 {[%emt 0:05:30]} 22. Bf4 {[%emt 0:10:05]} h5 {[%emt 0:16:09]} 23. h4 {[%emt 0:02:33]} Rc7 {[%emt 0:06:11]} 24. Bg5 {[%emt 0:08:13]} Qf8 {[%emt 0:01:08]} 25. Qf4 {[%emt 0:04:28]} b5 {[%emt 0:02:33]} 26. Bh6 {[%emt 0:07:11]} Qe7 {[%emt 0:00:16]} 27. Bg5 {[%emt 0:00:07]} Qf8 {[%emt 0:00:10]} 28. Bh6 {[%emt 0:00:44]} Qe7 {[%emt 0:00:05]} 29. Bg5 {[%emt 0:00:30]} Qf8 {[%emt 0:00:06]} 30. Bh6 {[%emt 0:00:18]} Qe7 {[%emt 0:00:24]} 1/2-1/2